[Event "IND-ch Women 2019"]
[Site "Karaikkudi"]
[Date "2019.07.27"]
[Round "11.4"]
[White "Ramaswamy, Aarthie"]
[Black "Srija, Seshadri"]
[Result "0-1"]
[ECO "C60"]
[WhiteElo "2020"]
[BlackElo "2306"]
[Annotator "NA RC"]
[PlyCount "97"]
[EventDate "2019.07.19"]
[EventType "swiss"]
[EventCountry "IND"]
[SourceTitle "playchess.com"]
[Source "ChessBase"]
[SourceQuality "1"]
[TimeControl "40/5400+30:1800+30"]

1. e4 {[%emt 0:01:12]} e5 {[%emt 0:00:00]} 2. Nf3 {[%emt 0:00:08]} Nc6 {[%emt 0:00:00]} 3. Bb5 {[%emt 0:00:03]} a6 {[%emt 0:00:00]} 4. Ba4 {[%emt 0:00:04]} g6 {[%emt 0:00:12]} 5. O-O {[%emt 0:09:27]} Bg7 {[%emt 0:00:15]} 6. c3 {[%emt 0:00:55]} b5 {[%emt 0:01:14]} 7. Bb3 {[%emt 0:00:31]} Nge7 {[%emt 0:00:50]} 8. d4 {[%emt 0:01:44]} exd4 {[%emt 0:00:19] C60: Ruy Lopez: Unusual Black 3rd moves and 3...g6} 9. cxd4 {[%emt 0:00:34]} O-O {[%emt 0:00:32]} 10. d5 {[%emt 0:09:36]} (10. Nc3 d6 11. h3 Na5 12. Bc2 c5 13. dxc5 dxc5 14. Qxd8 Rxd8 {0-1 (65) Vachier Lagrave,M (2789)-Mamedyarov,S (2808) Leuven 2018}) 10... Na5 $1 {[%emt 0:00:09]} 11. Bd2 {[%emt 0:01:00]} Nxb3 {[%emt 0:04:53]} ({Reject} 11... Bxb2 $6 12. Bxa5 Bxa1 13. Nc3 $16) 12. Qxb3 {[%emt 0:00:48]} c5 {[%emt 0:00:16]} 13. dxc6 {[%emt 0:18:25]} dxc6 {[%emt 0:00:32]} 14. Bc3 {[%emt 0:00:11]} Be6 {[%emt 0:08:54]} 15. Qc2 {[%emt 0:04:42]} f6 $146 {[%emt 0:03:32]} ({Predecessor:} 15... Bxc3 16. Nxc3 {½-½ (26) Padmini,R (2374)-Karavade,E (2421) Delhi 2016}) 16. Rd1 {[%emt 0:05:18]} Qc7 {[%emt 0:02:18]} 17. Nd4 {[%emt 0:00:04]} Bf7 {[%emt 0:00:13]} 18. Bb4 {[%emt 0:00:07]} Rac8 {[%emt 0:00:48]} 19. Bc5 {[%emt 0:04:35]} Rfe8 {[%emt 0:14:20]} 20. Nd2 {[%emt 0:04:28]} f5 {[%emt 0:04:53]} 21. exf5 {[%emt 0:05:07]} Bxd4 {[%emt 0:00:33]} 22. Bxd4 {[%emt 0:06:14]} Nxf5 {[%emt 0:00:08]} 23. Ne4 {[%emt 0:02:10]} Nxd4 {[%emt 0:06:28]} 24. Rxd4 {[%emt 0:10:38]} Qe5 {[%emt 0:00:14]} 25. Qc5 {[%emt 0:01:10]} Qxc5 {[%emt 0:03:23]} 26. Nxc5 {[%emt 0:00:02]} Re2 {[%emt 0:00:17]} 27. b4 {[%emt 0:03:48]} Rc2 {[%emt 0:07:32]} 28. h4 {[%emt 0:02:24]} a5 {[%emt 0:04:59]} 29. a3 {[%emt 0:01:02]} Bd5 {[%emt 0:36:46]} 30. Re1 {[%emt 0:05:44]} Rf8 {[%emt 0:00:00]} 31. f3 {[%emt 0:00:01]} axb4 {[%emt 0:00:00]} 32. axb4 {[%emt 0:00:02]} Ra8 {[%emt 0:00:00]} 33. Nd7 {[%emt 0:01:56]} Raa2 {[%emt 0:00:00]} 34. Nf6+ {[%emt 0:00:01] [#]} (34. Rg4 $1 $11) 34... Kf7 $1 {[%emt 0:00:00]} 35. Nxd5 {[%emt 0:00:21]} Rxg2+ {[%emt 0:00:00]} ({And not} 35... cxd5 36. Rf4+ Kg8 37. Re8+ Kg7 38. Re7+ Kg8 39. Rg4 $14) 36. Kh1 {[%emt 0:00:07]} cxd5 {[%emt 0:00:00]} 37. Rxd5 {[%emt 0:01:31]} Rh2+ {[%emt 0:00:00]} 38. Kg1 {[%emt 0:00:00]} Rag2+ {[%emt 0:00:00]} 39. Kf1 {[%emt 0:00:02]} Rb2 {[%emt 0:00:00]} 40. Kg1 {[%emt 0:00:00]} Rxh4 {[%emt 0:00:00]} 41. Rxb5 {[%emt 0:06:00]} Rhh2 $11 {[%emt 0:00:00]} (41... Rhxb4 $17 42. Rxb4 Rxb4) 42. Rc1 {[%emt 0:14:02]} Rhg2+ {[%emt 0:00:56]} 43. Kh1 {[%emt 0:07:28]} h5 {[%emt 0:05:13]} 44. f4 {[%emt 0:01:47]} Rgf2 {[%emt 0:00:50]} 45. f5 {[%emt 0:03:54]} Rxf5 {[%emt 0:07:58]} 46. Rxf5+ {[%emt 0:02:01]} gxf5 {[%emt 0:00:01]} 47. Rc7+ {[%emt 0:01:28]} Kg6 {[%emt 0:01:03]} 48. Rb7 {[%emt 0:00:26]} Kg5 {[%emt 0:01:03]} 49. Kg1 {[%emt 0:01:12]} 0-1

[Event "IND-ch Women 2019"]
[Site "Karaikkudi"]
[Date "2019.07.27"]
[Round "11.6"]
[White "Harshita Guddanti"]
[Black "Bala Kannamma P"]
[Result "1-0"]
[ECO "B43"]
[WhiteElo "2078"]
[BlackElo "2051"]
[Annotator "NA RC"]
[PlyCount "123"]
[EventDate "2019.07.19"]
[EventType "swiss"]
[EventCountry "IND"]
[SourceTitle "playchess.com"]
[Source "ChessBase"]
[SourceQuality "1"]
[TimeControl "40/5400+30:1800+30"]

1. e4 {[%emt 0:00:11]} c5 {[%emt 0:00:00]} 2. Nf3 {[%emt 0:00:03]} e6 {[%emt 1:31:00]} 3. d4 {[%emt 0:00:05]} cxd4 {[%emt 0:00:00]} 4. Nxd4 {[%emt 0:00:03]} a6 {[%emt 0:00:00]} 5. Nc3 {[%emt 0:00:05]} Qc7 {[%emt 0:00:00]} 6. Bd3 {[%emt 0:00:38]} Nc6 {[%emt 0:00:00]} 7. Nxc6 {[%emt 0:00:06]} dxc6 {[%emt 0:00:00]} 8. O-O {[%emt 0:00:50]} Nf6 {[%emt 0:00:00]} 9. f4 {[%emt 0:00:36]} e5 {[%emt 0:00:00]} 10. Kh1 {[%emt 0:00:57]} Bd6 {[%emt 0:00:00] B43: Sicilian: Kan Variation: 5 Nc3} 11. f5 {[%emt 0:00:32]} b5 {[%emt 0:00:00]} 12. Bg5 {[%emt 0:08:04]} (12. a4 Bb7 13. Be3 h5 14. axb5 axb5 15. Rxa8+ Bxa8 16. Bxb5 Bb4 17. Nd5 Nxd5 18. Qxd5 {1-0 (33) Najer,E (2682)-Artemiev,V (2682) Sochi 2017}) 12... Bb7 {[%emt 0:00:00]} 13. a4 {[%emt 0:08:53]} b4 {[%emt 0:00:00]} 14. Bxf6 $146 {[%emt 0:06:57]} ({Predecessor:} 14. Nb1 Nd7 15. Nd2 a5 {½-½ (36) Rojas Fernandez,A (1991)-Parayre Soguero,J (1865) Barcelona 2018}) 14... gxf6 {[%emt 0:00:00]} 15. Nb1 {[%emt 0:00:53]} h5 {[%emt 0:00:00]} 16. Rf3 {[%emt 0:08:46]} h4 {[%emt 0:00:00]} 17. Rh3 {[%emt 0:03:20]} Ke7 {[%emt 0:00:00]} 18. Nd2 {[%emt 0:03:24]} a5 {[%emt 0:00:00]} 19. Qe1 {[%emt 0:06:11]} Bc5 {[%emt 0:00:00]} 20. Rxh4 {[%emt 0:05:41]} Bd4 {[%emt 0:00:00]} 21. Rb1 {[%emt 0:02:17]} Qb6 {[%emt 0:00:00]} 22. Rxh8 {[%emt 0:04:18]} Rxh8 {[%emt 0:00:00]} 23. Qg3 {[%emt 0:00:52]} Qd8 {[%emt 0:00:00]} 24. Nb3 {[%emt 0:10:54]} Bb6 {[%emt 0:00:00]} 25. Rd1 {[%emt 0:01:40]} Qf8 {[%emt 0:00:22]} 26. Bc4 {[%emt 0:05:18]} Bc8 {[%emt 0:10:41]} 27. Qd3 {[%emt 0:04:36]} Qd8 {[%emt 0:00:02]} 28. Qxd8+ {[%emt 0:02:57]} Bxd8 {[%emt 0:00:13]} 29. g3 {[%emt 0:00:44]} Bb6 {[%emt 0:00:20]} 30. Kg2 {[%emt 0:01:11]} Rf8 {[%emt 0:00:17]} 31. Nc1 {[%emt 0:02:45]} Bd4 {[%emt 0:00:31]} 32. b3 {[%emt 0:01:16]} Bb7 {[%emt 0:00:29]} 33. Ne2 {[%emt 0:00:19]} c5 {[%emt 0:00:43]} 34. Kf3 $18 {[%emt 0:01:37]} Rh8 {[%emt 0:01:00]} 35. h4 {[%emt 0:00:48]} Bc6 {[%emt 0:00:18]} 36. Rh1 {[%emt 0:06:51]} Kf8 {[%emt 0:00:19]} 37. g4 {[%emt 0:00:38]} Kg7 {[%emt 0:00:24]} 38. Ng3 {[%emt 0:00:38]} Kf8 {[%emt 0:00:44]} 39. g5 {[%emt 0:02:14]} fxg5 {[%emt 0:01:24]} 40. hxg5 {[%emt 0:00:00]} Rxh1 {[%emt 0:00:00]} 41. Nxh1 {[%emt 0:00:16]} Bc3 {[%emt 0:04:13]} 42. Bd5 {[%emt 0:09:07]} Bd7 {[%emt 0:01:00]} 43. Nf2 {[%emt 0:02:37]} Bd2 {[%emt 0:03:41]} 44. Kg4 {[%emt 0:02:29]} Be3 {[%emt 0:00:22]} 45. Nd3 {[%emt 0:01:12]} Bd4 {[%emt 0:00:03]} 46. Ne1 {[%emt 0:00:56]} Bc3 {[%emt 0:00:54]} 47. Nf3 {[%emt 0:00:26]} Kg7 {[%emt 0:00:59]} 48. Kh5 {[%emt 0:02:47]} f6 {[%emt 0:02:30]} 49. g6 {[%emt 0:06:08]} Bc8 {[%emt 0:00:06]} 50. Ng5 {[%emt 0:02:44]} Bd2 {[%emt 0:04:59]} 51. Ne6+ {[%emt 0:00:27]} Kh8 {[%emt 0:00:14]} 52. g7+ {[%emt 0:04:03]} Kh7 {[%emt 0:00:05]} 53. g8=Q+ {[%emt 0:00:59]} Kxg8 {[%emt 0:00:02]} 54. Kg6 {[%emt 0:00:10]} Be1 {[%emt 0:01:01]} 55. Kxf6 {[%emt 0:01:07]} Bxe6 {[%emt 0:00:11]} 56. Bxe6+ {[%emt 0:01:27]} Kf8 {[%emt 0:03:00]} 57. Kxe5 {[%emt 0:00:03]} Bg3+ {[%emt 0:01:21]} 58. Kd5 {[%emt 0:01:06]} Ke7 {[%emt 0:00:04]} 59. e5 {[%emt 0:00:34]} Bf2 {[%emt 0:00:19]} 60. f6+ {[%emt 0:00:36]} Kf8 {[%emt 0:00:08]} 61. Bg4 {[%emt 0:00:43]} Bd4 {[%emt 0:00:04]} 62. Bh5 {[%emt 0:00:13]} 1-0

[Event "IND-ch Women 2019"]
[Site "Karaikkudi"]
[Date "2019.07.27"]
[Round "11.15"]
[White "Dhyana Patel"]
[Black "Thipsay, Bagyashree Sathe"]
[Result "1/2-1/2"]
[ECO "B19"]
[WhiteElo "1900"]
[BlackElo "2093"]
[Annotator "NA RC"]
[PlyCount "90"]
[EventDate "2019.07.19"]
[EventType "swiss"]
[EventCountry "IND"]
[SourceTitle "playchess.com"]
[Source "ChessBase"]
[SourceQuality "1"]
[TimeControl "40/5400+30:1800+30"]

1. e4 {[%emt 0:00:00]} c6 {[%emt 0:00:00]} 2. d4 {[%emt 0:00:00]} d5 {[%emt 0:00:00]} 3. Nd2 {[%emt 0:00:04]} dxe4 {[%emt 0:00:00]} 4. Nxe4 {[%emt 0:00:07]} Bf5 {[%emt 0:00:00]} 5. Ng3 {[%emt 0:00:28]} Bg6 {[%emt 0:00:00]} 6. h4 {[%emt 0:00:31]} h6 {[%emt 0:00:00]} 7. Nf3 {[%emt 0:00:05]} Nd7 {[%emt 0:00:03]} 8. h5 {[%emt 0:00:20]} Bh7 {[%emt 0:00:05]} 9. Bd3 {[%emt 0:00:05]} Bxd3 {[%emt 0:00:04]} 10. Qxd3 {[%emt 0:00:07]} Ngf6 {[%emt 0:00:11]} 11. Bd2 {[%emt 0:00:13]} e6 {[%emt 0:00:05]} 12. O-O-O {[%emt 0:00:13]} Be7 {[%emt 0:00:06]} 13. Ne4 {[%emt 0:00:28]} Qb6 {[%emt 0:03:02]} 14. Nxf6+ {[%emt 0:09:25]} Bxf6 {[%emt 0:00:23]} 15. c4 {[%emt 0:00:38]} a5 {[%emt 0:11:14]} 16. Bc3 {[%emt 0:02:31]} Qa6 $11 {[%emt 0:02:18]} 17. Ne5 {[%emt 0:05:33]} Nb6 {[%emt 0:06:43]} 18. c5 {[%emt 0:04:51]} Qxd3 {[%emt 0:07:52]} 19. Rxd3 {[%emt 0:01:01]} Nd5 {[%emt 0:00:07]} 20. Bd2 {[%emt 0:01:24]} Ke7 {[%emt 0:02:19]} 21. Nc4 {[%emt 0:01:23]} a4 {[%emt 0:09:55]} 22. f4 {[%emt 0:00:36]} Nc7 {[%emt 0:02:04]} 23. Re1 {[%emt 0:02:13]} Nb5 {[%emt 0:01:15]} 24. Nb6 {[%emt 0:01:20]} Rad8 {[%emt 0:01:00]} 25. d5 {[%emt 0:00:37]} cxd5 {[%emt 0:01:01]} 26. Rxd5 {[%emt 0:01:29]} Rxd5 {[%emt 0:01:25]} 27. Nxd5+ {[%emt 0:00:06]} Kd7 {[%emt 0:00:06]} 28. Nb6+ {[%emt 0:02:08]} Kc6 {[%emt 0:03:23]} 29. Nxa4 {[%emt 0:04:38]} Ra8 {[%emt 0:00:05]} 30. b3 {[%emt 0:00:05]} Rd8 {[%emt 0:00:04]} 31. Be3 {[%emt 0:02:24]} Rd5 {[%emt 0:01:23]} 32. g4 {[%emt 0:00:49]} Bd4 {[%emt 0:00:38]} 33. Bxd4 {[%emt 0:04:34]} Rxd4 {[%emt 0:00:03]} 34. Rf1 {[%emt 0:00:12]} Nc7 {[%emt 0:02:01]} 35. g5 {[%emt 0:02:15]} Nd5 {[%emt 0:02:24]} 36. f5 {[%emt 0:02:17]} hxg5 {[%emt 0:05:55]} 37. fxe6 {[%emt 0:00:48]} fxe6 {[%emt 0:00:18]} 38. Rf7 {[%emt 0:00:39]} Rh4 {[%emt 0:00:22]} 39. Rxg7 {[%emt 0:00:25]} Rxh5 {[%emt 0:01:17]} 40. Rg8 {[%emt 0:00:00]} Rh2 {[%emt 0:00:00]} 41. Rxg5 {[%emt 0:03:40]} Rxa2 {[%emt 0:07:52]} 42. Re5 {[%emt 0:02:50]} Kd7 {[%emt 0:06:55]} 43. Re4 {[%emt 0:00:27]} Ke7 {[%emt 0:01:39]} 44. Rc4 {[%emt 0:02:16]} e5 {[%emt 0:04:03]} 45. c6 {[%emt 0:01:16]} bxc6 {[%emt 0:01:21]} 1/2-1/2

[Event "IND-ch Women 2019"]
[Site "Karaikkudi"]
[Date "2019.07.27"]
[Round "11.16"]
[White "Kiran, Manisha Mohanty"]
[Black "Singh, Neha"]
[Result "1/2-1/2"]
[ECO "C88"]
[WhiteElo "2054"]
[BlackElo "1809"]
[Annotator "NA RC"]
[PlyCount "80"]
[EventDate "2019.07.19"]
[EventType "swiss"]
[EventCountry "IND"]
[SourceTitle "playchess.com"]
[Source "ChessBase"]
[SourceQuality "1"]
[TimeControl "40/5400+30:1800+30"]

1. e4 {[%emt 0:00:00]} e5 {[%emt 0:00:00]} 2. Nf3 {[%emt 0:00:00]} Nc6 {[%emt 0:00:00]} 3. Bb5 {[%emt 0:00:03]} a6 {[%emt 0:00:00]} 4. Ba4 {[%emt 0:00:12]} Nf6 {[%emt 0:00:00]} 5. O-O {[%emt 0:00:07]} b5 {[%emt 0:00:51]} 6. Bb3 {[%emt 0:00:05]} Be7 {[%emt 0:00:07]} 7. Re1 {[%emt 0:00:04]} d6 {[%emt 0:00:16]} 8. a4 {[%emt 0:00:06]} Bb7 {[%emt 0:01:00]} 9. d3 {[%emt 0:00:06]} O-O {[%emt 0:00:06]} 10. Nbd2 {[%emt 0:00:05]} Nd7 {[%emt 0:07:14]} 11. c3 {[%emt 0:00:26]} Nc5 {[%emt 0:01:02]} 12. Bc2 {[%emt 0:00:02]} Bf6 {[%emt 0:03:07]} 13. a5 {[%emt 0:00:47]} g6 {[%emt 0:09:53]} 14. Nf1 {[%emt 0:00:10]} Ne6 {[%emt 0:02:32]} 15. Bb3 {[%emt 0:01:23]} Qd7 {[%emt 0:03:06]} (15... Bg7 $14) 16. Bh6 $16 {[%emt 0:01:30]} Rfe8 {[%emt 0:05:08]} 17. Ne3 {[%emt 0:01:18]} Bg7 {[%emt 0:05:04]} 18. Bxg7 {[%emt 0:01:56]} Kxg7 {[%emt 0:03:13]} 19. g3 {[%emt 0:00:13]} Ne7 {[%emt 0:02:34]} 20. Nh4 {[%emt 0:02:15]} Ng5 {[%emt 0:05:02]} 21. Qg4 {[%emt 0:12:16]} Qxg4 {[%emt 0:01:00]} 22. Nxg4 {[%emt 0:00:02]} f5 {[%emt 0:00:59]} 23. exf5 {[%emt 0:01:33]} Nxf5 {[%emt 0:01:18]} 24. Bd1 {[%emt 0:01:58]} Nxh4 {[%emt 0:02:34]} 25. gxh4 {[%emt 0:00:07]} Nh3+ {[%emt 0:00:44]} 26. Kf1 {[%emt 0:00:11]} Rf8 {[%emt 0:00:29]} 27. Re3 {[%emt 0:00:25]} Nf4 {[%emt 0:02:45]} 28. f3 {[%emt 0:02:28]} Rf5 {[%emt 0:02:49]} 29. c4 {[%emt 0:06:04]} bxc4 {[%emt 0:03:49]} 30. dxc4 {[%emt 0:00:03]} Ne6 {[%emt 0:00:35]} 31. Kg2 {[%emt 0:03:33]} Nd4 {[%emt 0:00:15]} 32. Nf2 {[%emt 0:00:48]} Raf8 {[%emt 0:00:41]} 33. Raa3 {[%emt 0:00:10]} Rf4 {[%emt 0:00:36]} 34. b4 {[%emt 0:02:45]} Nf5 {[%emt 0:00:42]} 35. Rec3 {[%emt 0:00:18]} Nxh4+ {[%emt 0:00:07]} 36. Kg3 {[%emt 0:00:21]} Nf5+ {[%emt 0:07:03]} 37. Kg2 {[%emt 0:00:11]} Nh4+ {[%emt 0:06:33]} 38. Kg3 {[%emt 0:00:05]} Nf5+ {[%emt 0:25:46]} 39. Kg2 {[%emt 1:05:24]} Rd4 {[%emt 0:00:30]} 40. b5 {[%emt 0:00:00]} Rd2 {[%emt 0:00:00]} 1/2-1/2

[Event "IND-ch Women 2019"]
[Site "Karaikkudi"]
[Date "2019.07.27"]
[Round "11.18"]
[White "Meenal Gupta"]
[Black "Sunyuktha C M N"]
[Result "0-1"]
[ECO "B90"]
[WhiteElo "2004"]
[BlackElo "1815"]
[Annotator "NA RC"]
[PlyCount "68"]
[EventDate "2019.07.19"]
[EventType "swiss"]
[EventCountry "IND"]
[SourceTitle "playchess.com"]
[Source "ChessBase"]
[SourceQuality "1"]
[TimeControl "40/5400+30:1800+30"]

1. e4 {[%emt 0:00:00]} c5 {[%emt 0:00:00]} 2. Nf3 {[%emt 0:00:00]} d6 {[%emt 0:00:00]} 3. d4 {[%emt 0:00:00]} cxd4 {[%emt 0:00:00]} 4. Nxd4 {[%emt 0:00:00]} Nf6 {[%emt 0:00:00]} 5. Nc3 {[%emt 0:00:02]} a6 {[%emt 0:00:03]} 6. Be3 {[%emt 0:00:05]} e5 {[%emt 0:00:19]} 7. Nb3 {[%emt 0:00:03]} Be6 {[%emt 0:00:08]} 8. f3 {[%emt 0:00:05]} Be7 {[%emt 0:00:48]} 9. Qd2 {[%emt 0:00:07]} O-O {[%emt 0:00:24]} 10. O-O-O {[%emt 0:00:09]} Nbd7 {[%emt 0:00:41]} 11. g4 {[%emt 0:00:14]} b5 {[%emt 0:00:09]} 12. g5 {[%emt 0:00:30]} Nh5 {[%emt 0:00:21]} 13. Rg1 {[%emt 0:12:16]} Nb6 $11 {[%emt 0:17:05]} 14. Nd5 {[%emt 0:20:54]} Bxd5 {[%emt 0:07:25]} 15. exd5 {[%emt 0:00:03]} Rc8 {[%emt 0:06:53]} 16. Na5 {[%emt 0:12:12]} Nxd5 {[%emt 0:10:19]} 17. Qxd5 {[%emt 0:00:02]} Qxa5 {[%emt 0:00:05]} 18. Bd3 {[%emt 0:00:26]} g6 {[%emt 0:02:53]} 19. Rdf1 {[%emt 0:01:04]} Qc7 {[%emt 0:23:22]} 20. Kb1 {[%emt 0:04:38]} Qd7 {[%emt 0:13:02]} 21. a4 {[%emt 0:02:52]} bxa4 {[%emt 0:06:39]} 22. Bxa6 {[%emt 0:00:09]} Rb8 {[%emt 0:00:38]} 23. Rg4 {[%emt 0:00:43]} Ng7 {[%emt 0:06:39]} 24. Qa5 {[%emt 0:04:12]} Nf5 {[%emt 0:01:33]} 25. Bf2 {[%emt 0:00:27]} Ra8 {[%emt 0:01:39]} 26. Qxa4 {[%emt 0:01:53]} Qe6 {[%emt 0:00:31]} 27. Qc6 {[%emt 0:00:51]} Rfb8 {[%emt 0:00:53]} 28. Bc4 {[%emt 0:01:17]} Qc8 {[%emt 0:00:29]} 29. Qd5 {[%emt 0:00:06]} Qe8 {[%emt 0:00:45]} 30. f4 {[%emt 0:01:51]} exf4 {[%emt 0:00:39]} 31. Rxf4 {[%emt 0:00:02]} Qa4 {[%emt 0:00:30]} 32. Ba7 {[%emt 0:08:11]} Qxa7 {[%emt 0:00:30]} 33. Qxf7+ {[%emt 0:00:06]} Kh8 {[%emt 0:00:01]} 34. Ba2 {[%emt 0:00:11]} Qa3 {[%emt 0:00:48]} 0-1

[Event "IND-ch Women 2019"]
[Site "Karaikkudi"]
[Date "2019.07.27"]
[Round "11.19"]
[White "Saranya, J."]
[Black "Abhirami Madabushi"]
[Result "1-0"]
[ECO "C42"]
[WhiteElo "2067"]
[BlackElo "1689"]
[Annotator "NA RC"]
[PlyCount "75"]
[EventDate "2019.07.19"]
[EventType "swiss"]
[EventCountry "IND"]
[SourceTitle "playchess.com"]
[Source "ChessBase"]
[SourceQuality "1"]
[TimeControl "40/5400+30:1800+30"]

1. e4 {[%emt 1:30:30]} e5 {[%emt 1:30:30]} 2. Nf3 {[%emt 0:00:30]} Nf6 {[%emt 0:00:30]} 3. Nxe5 {[%emt 0:00:30]} d6 {[%emt 0:00:30]} 4. Nf3 {[%emt 0:00:30]} Nxe4 {[%emt 0:00:30]} 5. d4 {[%emt 0:00:30]} d5 {[%emt 0:00:30]} 6. Bd3 {[%emt 0:00:30]} Be7 {[%emt 0:00:30]} 7. c4 {[%emt 0:00:30]} Bb4+ {[%emt 0:00:30]} 8. Nbd2 {[%emt 0:00:30]} Nxd2 {[%emt 0:00:30]} 9. Bxd2 {[%emt 0:00:30]} Qe7+ {[%emt 0:00:30]} 10. Be2 {[%emt 0:00:30]} Bxd2+ {[%emt 0:00:30]} 11. Qxd2 {[%emt 0:00:30]} Be6 {[%emt 0:00:30]} 12. O-O {[%emt 0:00:30]} Nc6 $14 {[%emt 0:00:30]} 13. c5 {[%emt 0:00:30]} O-O {[%emt 0:00:30]} 14. Rfe1 {[%emt 0:00:30]} Qf6 {[%emt 0:00:30]} 15. Bb5 {[%emt 0:00:30]} Ne7 {[%emt 0:00:30]} 16. Ne5 {[%emt 0:00:30]} c6 {[%emt 0:00:30]} 17. Bd3 {[%emt 0:00:30]} Ng6 {[%emt 0:00:30]} 18. g3 {[%emt 0:00:30]} Bf5 {[%emt 0:00:30]} 19. f4 {[%emt 0:00:30]} Rfe8 {[%emt 0:00:30]} 20. Re2 {[%emt 0:00:30]} h5 {[%emt 0:00:30]} 21. Rae1 {[%emt 0:00:30]} h4 {[%emt 0:00:30]} 22. b4 {[%emt 0:00:30]} Re6 {[%emt 0:00:30]} 23. Rf2 {[%emt 0:00:30]} hxg3 {[%emt 0:00:30]} 24. hxg3 {[%emt 0:00:30]} Rae8 {[%emt 0:00:30]} 25. Ref1 {[%emt 0:00:30]} Be4 {[%emt 0:00:30]} 26. Bxe4 {[%emt 0:00:30]} dxe4 27. Qe3 {[%emt 0:00:00]} Ne7 {[%emt 0:00:00]} 28. g4 {[%emt 0:00:00]} Nd5 {[%emt 0:00:00]} 29. Qxe4 {[%emt 0:00:00]} Qh4 {[%emt 0:00:00]} 30. Rh2 {[%emt 0:00:00]} Qg3+ {[%emt 0:00:00]} 31. Kh1 {[%emt 0:00:00]} Rh6 {[%emt 0:00:00]} 32. Rxh6 {[%emt 0:00:00]} gxh6 {[%emt 0:00:00]} 33. Rf3 {[%emt 0:00:00]} Qh4+ {[%emt 0:00:00]} 34. Kg2 {[%emt 0:00:00]} Kg7 {[%emt 0:00:00]} 35. a3 {[%emt 0:03:20]} Nf6 {[%emt 0:00:00]} 36. Qe2 {[%emt 0:00:32]} Nxg4 {[%emt 0:00:00]} 37. Rh3 {[%emt 0:00:36]} Rxe5 {[%emt 0:00:00]} 38. dxe5 {[%emt 0:00:32]} 1-0

[Event "IND-ch Women 2019"]
[Site "Karaikkudi"]
[Date "2019.07.27"]
[Round "11.20"]
[White "Meghna, C H"]
[Black "Rindhiya V"]
[Result "1-0"]
[ECO "C54"]
[WhiteElo "1903"]
[BlackElo "1573"]
[Annotator "NA RC"]
[PlyCount "73"]
[EventDate "2019.07.19"]
[EventType "swiss"]
[EventCountry "IND"]
[SourceTitle "playchess.com"]
[Source "ChessBase"]
[SourceQuality "1"]
[TimeControl "40/5400+30:1800+30"]

1. e4 {[%emt 0:00:00]} e5 {[%emt 0:00:00]} 2. Nf3 {[%emt 0:00:00]} Nc6 {[%emt 0:00:00]} 3. Bc4 {[%emt 0:00:00]} Bc5 {[%emt 0:00:00]} 4. c3 {[%emt 0:00:00]} Nf6 {[%emt 0:00:00]} 5. d3 {[%emt 0:00:10]} d6 {[%emt 0:00:00]} 6. Bb3 {[%emt 0:00:24]} a6 {[%emt 0:00:01]} 7. h3 {[%emt 0:00:23]} h6 {[%emt 0:00:10]} 8. Nbd2 {[%emt 0:01:11]} O-O {[%emt 0:00:06]} 9. Nf1 {[%emt 0:10:22]} Be6 {[%emt 0:00:21]} 10. Ng3 {[%emt 0:00:42]} Ne7 {[%emt 0:09:27]} 11. O-O {[%emt 0:00:43]} Ng6 {[%emt 0:00:46]} 12. d4 {[%emt 0:04:10]} Ba7 $14 {[%emt 0:00:36]} 13. Bc2 {[%emt 0:16:18]} c5 {[%emt 0:21:17]} 14. d5 {[%emt 0:08:07]} Bd7 {[%emt 0:01:25]} 15. c4 {[%emt 0:00:06]} b5 {[%emt 0:00:18]} 16. b3 {[%emt 0:00:14]} a5 {[%emt 0:03:22]} 17. a4 {[%emt 0:02:23]} bxc4 {[%emt 0:00:22]} 18. bxc4 {[%emt 0:00:04]} Qc7 {[%emt 0:05:20]} 19. Nh2 {[%emt 0:03:30]} Rab8 {[%emt 0:09:29]} 20. f4 {[%emt 0:03:00]} exf4 {[%emt 0:01:59]} 21. Bxf4 {[%emt 0:00:54]} Nxf4 {[%emt 0:00:54]} 22. Rxf4 {[%emt 0:00:01]} Rb4 {[%emt 0:01:30]} 23. Qd3 {[%emt 0:28:45]} Re8 {[%emt 0:09:46]} 24. Nf3 {[%emt 0:04:48]} Qd8 {[%emt 0:02:30]} 25. Qc3 {[%emt 0:08:42]} Bc8 {[%emt 0:04:59]} 26. Rf1 {[%emt 0:03:50]} Qe7 {[%emt 0:02:24]} 27. Nh4 {[%emt 0:02:12]} Qe5 {[%emt 0:02:11]} 28. Qf3 {[%emt 0:01:01]} Rxc4 {[%emt 0:00:39]} 29. Ngf5 {[%emt 0:01:42]} Rxc2 {[%emt 0:06:12]} 30. Nxg7 {[%emt 0:00:05]} c4+ {[%emt 0:06:47]} 31. Kh1 {[%emt 0:00:01]} Rc3 {[%emt 0:10:41]} 32. Nxe8 {[%emt 0:00:09]} Nxe8 {[%emt 0:00:53]} 33. Qe2 {[%emt 0:00:56]} Be3 {[%emt 0:01:31]} 34. Rxf7 {[%emt 0:00:56]} Bg5 {[%emt 0:00:32]} 35. Qh5 {[%emt 0:01:06]} Ng7 {[%emt 0:00:30]} 36. Rf8+ {[%emt 0:00:09]} Kh7 {[%emt 0:00:01]} 37. Qg6# {[%emt 0:00:05]} 1-0